bitfinex/quotes_ETHUSD_20241001
["timestamp","ask_amount","ask_price","bid_price","bid_amount"]
[1727825163004,7.77355431,2454.8,2454.3,3.25958]
[1727825163199,4.51451431,2454.8,2454.4,3.25943]
[1727825163437,3.6645182,2454.8,2454.4,3.25943]
[1727825163752,3.6645182,2454.8,2452.9,0.7649]
[1727825163753,0.0392,2453.9,2452.9,0.7649]
[1727825163968,0.85286179,2453.7,2453.0,3.26118]
[1727825164201,3.73835452,2453.3,2452.9,4.0263]
[1727825164339,3.26065,2453.5,2452.9,4.0263]
[1727825164837,3.26065,2453.5,2452.9,0.7649]
[1727825164838,3.2608,2453.4,2452.9,0.7649]
[1727825165166,3.3,2453.4,2452.9,0.7649]
[1727825165377,0.0392,2453.4,2452.9,4.0263]
[1727825165526,4.2391669,2453.5,2453.0,3.26129]
[1727825165721,7.4999269,2453.5,2452.9,0.7649]
[1727825165927,4.2391669,2453.5,2452.9,0.7649]
[1727825166152,7.4998069,2453.5,2452.9,0.7649]
[1727825166353,7.4998069,2453.5,2452.9,4.02633]
[1727825166890,0.85286179,2453.8,2453.2,3.26097]
[1727825166891,3.29951,2453.8,2453.2,3.26097]
[1727825167043,0.85286179,2453.9,2453.4,3.26076]
[1727825167236,3.26007,2454.0,2453.4,3.2607]
[1727825167433,4.5030279,2454.0,2453.4,6.5214]
[1727825167859,4.5030279,2454.0,2453.5,3.26061]
[1727825168377,3.29906,2454.1,2453.6,3.26049]
[1727825168780,3.25999,2454.0,2453.4,3.26065]
[1727825168980,3.25979,2454.2,2453.5,0.7649]
[1727825169205,3.68458855,2454.4,2453.3,0.7649]
[1727825169416,0.42505855,2454.4,2454.3,4.02448]
[1727825169628,0.42505855,2454.4,2454.3,0.7649]
[1727825169787,3.25903,2454.8,2454.3,0.7649]
[1727825170119,3.25903,2454.8,2454.3,4.02448]
[1727825170286,5.12268885,2455.0,2454.3,1.493311]
[1727825170489,5.12268885,2455.0,2454.3,0.7649]
[1727825170490,1.86393885,2455.0,2454.3,0.7649]
[1727825170686,3.25891,2454.9,2454.3,4.02439]
[1727825171231,3.25887,2454.9,2454.3,4.02439]
[1727825171377,3.25887,2454.9,2454.3,0.7649]
[1727825171578,3.25887,2454.9,2454.4,3.25944]
[1727825171800,3.25887,2454.9,2454.3,0.7649]
[1727825171801,3.25906,2454.7,2454.3,0.7649]
[1727825172200,0.68423394,2454.6,2454.3,0.7649]
[1727825172400,0.35832794,2454.6,2454.3,0.7649]
[1727825172908,0.35832794,2454.6,2454.3,4.02447]
[1727825173136,3.25894,2454.8,2454.3,4.02447]
[1727825173316,0.35832794,2454.5,2454.3,4.02447]
[1727825173536,3.25886,2454.9,2454.4,3.25944]
[1727825173706,4.12774145,2454.9,2454.4,3.25944]
[1727825174041,3.25886,2454.9,2454.3,7.28397]
[1727825174346,6.51772,2454.9,2454.3,4.0244]
[1727825174547,4.11159179,2455.0,2454.5,3.2593]
[1727825174838,3.25873,2455.0,2454.5,3.2593]
[1727825175006,3.99976018,2454.9,2454.4,3.25934]
[1727825175525,3.85286179,2454.7,2454.0,0.7891]
[1727825175737,3.85286179,2454.7,2454.0,4.04907]
[1727825175738,3.25922,2454.6,2454.0,4.04907]
[1727825175922,3.25946,2454.4,2454.0,0.7891]
[1727825176943,6.51899,2454.4,2454.0,0.7891]
[1727825177139,6.51899,2454.4,2453.7,0.7891]
[1727825177140,3.25974,2454.2,2453.7,0.7891]
[1727825177503,3.25974,2454.2,2453.7,4.04945]
[1727825177699,6.51906,2454.4,2453.8,3.26017]
[1727825177901,3.25963,2454.3,2453.7,4.04945]
[1727825178105,3.25972,2454.2,2453.7,4.04939]
[1727825178417,3.25972,2454.2,2453.8,3.26023]
[1727825178621,4.067833,2454.4,2453.8,3.26023]
[1727825178939,3.25959,2454.3,2453.8,3.26023]
[1727825179648,3.25959,2454.3,2453.7,4.04939]
[1727825179829,4.067833,2454.4,2453.7,4.04939]
[1727825180047,3.73748412,2454.3,2453.8,3.26023]
[1727825180369,3.71120818,2454.5,2453.9,3.2601]
[1727825180555,3.25957,2454.4,2453.9,3.26004]
[1727825180709,6.51913,2454.4,2453.9,3.26004]
[1727825180912,3.25958,2454.3,2453.9,3.26004]
[1727825181215,3.25934,2454.5,2454.0,4.04903]
[1727825181413,6.51879,2454.5,2454.0,0.7891]
[1727825181747,3.25972,2454.2,2454.0,0.7891]
[1727825182451,3.25991,2454.1,2453.6,4.0496]
[1727825182656,6.51937,2454.3,2453.7,3.26037]
[1727825183002,3.2598,2454.2,2453.7,3.26037]
[1727825183652,0.8448597,2454.3,2453.6,0.7891]
[1727825183947,6.55828,2454.4,2453.8,3.26012]
[1727825184432,3.29871,2454.4,2453.9,3.26004]
[1727825185407,3.29871,2454.4,2454.0,0.7891]
[1727825185408,3.25951,2454.4,2454.0,0.7891]
[1727825185733,3.25951,2454.4,2453.8,0.7891]
[1727825185734,3.25969,2454.3,2453.8,0.7891]
[1727825185936,4.1006127,2454.3,2453.8,4.04931]
[1727825186920,0.35819521,2454.2,2453.8,4.04931]
[1727825187226,4.1006127,2454.3,2453.8,4.04931]
[1727825187432,0.35819521,2454.2,2453.8,0.7891]
[1727825187658,0.8409227,2454.3,2453.9,3.2601]
[1727825187842,0.35819521,2454.1,2453.9,3.2601]
[1727825188154,4.11227179,2454.5,2453.9,3.990949]
[1727825188360,4.11215179,2454.6,2454.1,3.25979]
[1727825188859,4.11212179,2454.6,2454.1,3.25979]
[1727825189156,7.37140179,2454.6,2454.1,3.25979]
[1727825189360,4.11212179,2454.6,2454.0,0.7747]
[1727825189595,3.25959,2454.3,2454.0,0.7747]
[1727825189798,3.25971,2454.2,2454.0,0.7747]
[1727825190063,3.25971,2454.2,2453.8,4.03489]
[1727825190730,3.25959,2454.3,2453.8,4.03489]
[1727825190938,3.25959,2454.3,2453.8,0.7747]
[1727825191142,0.41124518,2454.2,2453.8,0.7747]
[1727825191440,3.67101518,2454.2,2453.8,0.7747]
[1727825193523,3.25977,2454.2,2453.8,0.7747]
[1727825194132,3.25977,2454.2,2453.8,4.03488]
[1727825196231,0.85286179,2454.4,2454.2,4.03441]
[1727825196434,2.56073662,2454.8,2454.4,0.7747]
[1727825196435,0.42635708,2454.8,2454.4,0.7747]
[1727825196939,0.42635708,2454.8,2454.7,0.7747]
[1727825198291,0.42635708,2454.8,2454.4,0.7747]
[1727825198635,4.11187179,2454.8,2454.4,0.7747]
[1727825199278,0.85286179,2454.8,2454.4,0.7747]
[1727825199425,4.53809269,2454.9,2454.4,0.7747]
[1727825199426,4.11166179,2454.9,2454.4,0.7747]
[1727825199786,1.39587724,2454.8,2454.4,0.7747]
[1727825200121,0.54301545,2454.8,2454.4,0.7747]
[1727825200371,1.39587724,2454.8,2454.4,0.7747]
[1727825200727,0.54301545,2454.8,2454.4,0.7747]
[1727825201432,3.25907,2454.7,2454.4,0.7747]
[1727825201639,1.39587724,2454.8,2454.4,0.7747]
[1727825201859,0.35813989,2454.7,2454.4,0.7747]
[1727825202390,3.25905,2454.7,2454.4,0.7747]
[1727825202700,0.35813989,2454.6,2454.4,0.7747]
[1727825203054,4.11166179,2454.9,2454.4,4.03412]
[1727825203250,0.85286179,2454.9,2454.6,3.25916]
[1727825203495,0.85286179,2455.2,2454.9,3.25878]
[1727825203692,0.85286179,2455.3,2454.9,3.25871]
[1727825203856,4.11099179,2455.4,2454.9,3.25871]
[1727825204052,5.1503196,2455.4,2454.9,3.25871]
[1727825205096,3.25827,2455.3,2454.9,3.25871]
[1727825205320,3.25827,2455.3,2454.8,4.02201]
[1727825206402,4.11095179,2455.5,2454.9,3.34017555]
[1727825206601,4.11095179,2455.5,2455.0,3.25862]
[1727825206755,5.4502496,2455.5,2454.9,3.34017555]
[1727825206958,3.25814,2455.4,2454.9,3.34017555]
[1727825207401,5.4502496,2455.5,2455.0,3.25863]
[1727825207561,7.85548781,2455.5,2455.0,3.25863]
[1727825208071,7.85547781,2455.5,2455.0,3.25863]
[1727825208483,3.25813,2455.4,2454.9,3.34017555]
[1727825208799,3.25813,2455.4,2454.6,0.7631]
[1727825208800,0.0392,2455.3,2454.6,0.7631]
[1727825208970,3.25878,2454.9,2454.6,0.7631]
[1727825209999,3.25901,2454.8,2454.6,0.7631]
[1727825210210,4.11148179,2455.1,2454.6,0.7631]
[1727825210211,3.25873,2455.0,2454.6,0.7631]
[1727825210369,0.73702118,2454.9,2454.6,0.7631]
[1727825210563,3.99582118,2454.9,2454.6,0.7631]
[1727825210761,4.03502118,2454.9,2454.3,0.7631]
[1727825211062,3.25911,2454.7,2454.3,0.7631]
[1727825212965,3.25911,2454.7,2454.3,4.02267]
[1727825214701,4.11197179,2454.7,2454.3,4.02267]
[1727825215121,0.85286179,2454.8,2454.4,3.25944]
[1727825215477,4.11186179,2454.8,2454.3,0.7631]
[1727825215827,4.11186179,2454.8,2454.1,0.7631]
[1727825215828,3.25945,2454.4,2454.1,0.7631]
[1727825216035,3.25945,2454.4,2453.8,4.02327]
[1727825216036,3.25965,2454.3,2453.8,4.02327]
[1727825216177,3.25965,2454.3,2453.8,0.7631]
[1727825216178,3.25977,2454.2,2453.8,0.7631]
[1727825216874,0.35833899,2454.1,2453.8,0.7631]
[1727825217204,0.85286179,2454.3,2453.9,3.26004]
[1727825217380,0.35824498,2454.2,2453.9,3.26004]
[1727825217584,0.85286179,2454.3,2453.8,4.02334]
[1727825217780,4.47084677,2454.2,2453.8,0.7631]
[1727825218012,1.21110677,2454.2,2453.8,4.02333]
[1727825218312,0.35824498,2454.2,2453.9,3.2601]
[1727825218536,3.61795498,2454.2,2453.8,4.02334]
[1727825218696,3.25971,2454.2,2453.8,4.02334]
[1727825218893,0.35824498,2454.1,2453.8,4.02334]
[1727825219420,4.11251179,2454.3,2453.8,7.28352]
[1727825219627,1.21110677,2454.2,2453.8,4.02328]
[1727825219927,0.35824498,2454.2,2453.8,4.02328]
[1727825220289,4.11251179,2454.3,2453.8,4.02328]
[1727825220488,0.35824498,2454.1,2453.8,7.28345]
[1727825220716,4.11251179,2454.3,2453.8,7.28343]
[1727825220880,0.35824498,2454.0,2453.8,7.28343]
[1727825221081,4.11251179,2454.3,2453.8,7.28343]
[1727825221307,0.35824498,2453.9,2453.8,7.28343]
[1727825221488,0.85286179,2454.3,2453.9,3.26007]
[1727825222296,0.85286179,2454.4,2454.0,3.25998]
[1727825222820,0.85286179,2454.3,2454.0,3.25998]
[1727825223431,0.85286179,2454.3,2453.9,3.26007]
[1727825223432,0.85286179,2454.4,2453.9,6.5201]
[1727825223584,4.11231179,2454.4,2453.9,3.26003]
[1727825224092,0.89206179,2454.3,2453.8,0.7631]
[1727825224319,4.11270179,2454.2,2453.8,0.7631]
[1727825224514,3.25985,2454.1,2453.8,0.7631]
[1727825224712,3.26012,2453.9,2453.6,0.798]
[1727825225113,6.55953,2453.9,2453.4,3.26077]
[1727825225311,7.41239179,2453.9,2453.4,3.26077]
[1727825225542,1.76123024,2453.9,2453.3,0.798]
[1727825225708,3.26053,2453.6,2453.1,3.26111]
[1727825226600,3.73893641,2453.8,2453.3,3.26083]
[1727825226601,4.11311179,2453.8,2453.3,3.26083]
[1727825227221,4.16857845,2453.9,2453.4,4.05867]
[1727825227222,0.89206179,2453.9,2453.4,4.05867]
[1727825227426,4.53933269,2454.0,2453.6,3.26051]
[1727825227427,4.11285179,2454.0,2453.6,3.26051]
[1727825227651,4.98198024,2454.0,2453.6,3.26051]
[1727825227855,4.98198024,2454.0,2453.4,4.05867]
[1727825228093,3.26025,2453.8,2453.4,4.05867]
[1727825228347,3.2996,2453.7,2453.2,4.05896]
[1727825228655,3.26055,2453.6,2453.2,4.05896]
[1727825228813,3.2996,2453.7,2453.2,7.31994]
[1727825229148,3.2996,2453.7,2453.2,4.05896]
[1727825229362,4.16879745,2453.7,2453.2,3.26096]
[1727825229654,4.16879745,2453.7,2453.0,7.32042]
[1727825229822,4.16879745,2453.7,2453.1,3.26115]
[1727825230013,3.26052,2453.6,2453.1,3.26115]
[1727825231238,3.0,2453.5,2453.0,4.05921]
[1727825231445,3.886832,2453.4,2453.0,4.05921]
[1727825231763,3.26078,2453.4,2453.0,4.05921]
[1727825231973,0.3573819,2453.3,2453.0,4.05921]
[1727825233233,0.3573819,2453.3,2453.0,0.798]
[1727825233535,0.3573819,2453.3,2452.1,6.26249]
[1727825233536,0.3965819,2453.3,2452.7,3.26161]
[1727825233751,3.26105,2453.2,2452.7,6.52323]
[1727825234337,0.3573819,2453.1,2452.8,3.26156]
[1727825235154,3.26105,2453.2,2452.8,3.26156]
[1727825235367,0.3573819,2453.0,2452.4,4.09258]
[1727825235621,0.0392,2453.3,2452.8,3.26146]
[1727825235888,3.26105,2453.2,2452.8,3.26146]
[1727825236044,3.6184319,2453.2,2452.8,3.26146]
[1727825236580,0.3573819,2453.2,2452.8,3.26146]
[1727825236868,3.26092,2453.3,2452.9,0.8305]
[1727825237069,0.3573819,2453.2,2452.9,0.8305]
[1727825237271,3.26078,2453.4,2452.9,0.8305]
[1727825237473,0.3573819,2453.3,2453.1,3.26112]
[1727825237677,0.3573819,2453.3,2452.9,0.8305]
[1727825237971,3.26087,2453.4,2452.9,4.09184]
[1727825238287,3.26055,2453.6,2453.1,3.26117]
[1727825238568,0.35713284,2453.3,2453.1,3.26117]
[1727825238875,6.56012,2453.7,2453.2,3.26103]
[1727825239287,3.29965,2453.7,2453.2,3.26103]
[1727825239513,6.56012,2453.7,2453.2,3.26103]
[1727825239825,3.29965,2453.7,2453.3,3.26089]
[1727825239972,3.68672597,2453.9,2453.4,3.26077]
[1727825240172,0.42653597,2453.9,2453.5,3.26055]
[1727825240585,3.26025,2453.8,2453.3,4.09128]
[1727825240877,0.0392,2453.6,2453.1,0.8305]
[1727825241094,3.26074,2453.5,2453.1,0.8305]
[1727825241406,0.0392,2453.6,2452.8,3.26149]
[1727825241407,3.26105,2453.2,2452.9,0.8305]
[1727825241976,3.26105,2453.2,2452.5,0.8305]
[1727825241977,3.0,2453.1,2452.5,0.8305]
[1727825242294,3.0,2453.1,2452.6,3.26177]
[1727825242295,6.5651,2453.1,2452.6,3.26177]
[1727825242489,3.26132,2453.0,2452.5,4.09241]
[1727825242723,3.26132,2453.0,2452.5,7.3543]
[1727825243516,3.26132,2453.0,2452.5,7.35429]
[1727825244077,3.26144,2452.9,2452.5,0.8305]
[1727825244278,7.505638,2452.9,2452.5,0.8305]
[1727825244491,3.26159,2452.8,2452.4,3.2621]
[1727825244714,3.26172,2452.7,2452.3,0.8305]
[1727825245226,3.26172,2452.7,2452.1,4.09289]
[1727825245513,6.52355,2452.7,2452.2,3.26236]
[1727825245717,3.26185,2452.6,2452.1,7.35533]
[1727825245951,3.26185,2452.6,2452.1,4.09289]
[1727825246892,0.35721033,2452.5,2452.1,4.09289]
[1727825247187,6.88128033,2452.5,2452.1,0.8305]
[1727825247396,7.61224424,2452.5,2452.1,0.8305]
[1727825247779,4.35015424,2452.5,2452.1,0.8305]
[1727825248075,3.26218,2452.4,2452.0,0.0101752]
[1727825248277,3.26226,2452.3,2452.0,0.0101752]
[1727825248474,3.30146,2452.3,2452.0,0.0101752]
[1727825248678,0.35721033,2452.2,2452.0,0.0101752]
[1727825248911,4.03095039,2452.3,2452.0,0.0101752]
[1727825249111,0.35721033,2452.1,2452.0,0.0101752]
[1727825249315,3.26239,2452.2,2452.0,0.0101752]
[1727825249516,4.03095039,2452.3,2452.0,0.0101752]
[1727825249517,1.08607927,2452.1,2452.0,0.0101752]
[1727825249809,0.35674523,2452.1,2452.0,0.0101752]
[1727825250205,0.0392,2452.3,2452.0,0.0101752]
[1727825250206,3.30144,2452.3,2452.0,0.0101752]
[1727825250406,0.35674523,2452.1,2452.0,0.0101752]
[1727825250620,3.30144,2452.3,2452.0,0.0101752]
[1727825250788,0.35674523,2452.1,2452.0,0.0101752]
[1727825250980,3.30144,2452.3,2452.0,0.0101752]
[1727825251176,0.35674523,2452.1,2452.0,0.0101752]
[1727825251385,3.30144,2452.3,2452.0,0.0101752]
[1727825251580,0.35674523,2452.1,2452.0,0.0101752]
[1727825252084,4.33088639,2452.3,2452.0,0.0101752]
[1727825252285,0.35674523,2452.1,2452.0,0.0101752]
[1727825252617,4.33088639,2452.3,2452.0,0.0101752]
[1727825253218,0.35674523,2452.2,2452.0,0.0101752]
[1727825253518,6.52409,2452.5,2452.1,0.7856]
[1727825253690,0.44213327,2452.5,2452.1,4.04807]
[1727825254020,3.0,2452.6,2452.2,3.26236]
[1727825254721,3.0,2452.6,2452.1,4.0481]
[1727825254722,0.35674523,2452.5,2452.1,4.0481]
[1727825255224,0.35674523,2452.5,2452.1,0.7856]
[1727825255408,0.35674523,2452.5,2452.1,4.04806]
[1727825255986,0.35674523,2452.5,2452.1,0.7856]
[1727825256891,0.35674523,2452.5,2452.1,4.04807]
[1727825257090,3.26213,2452.4,2452.0,0.0101752]
[1727825257291,3.26239,2452.2,2452.0,0.0101752]
[1727825257716,0.35674523,2452.1,2452.0,0.0101752]
[1727825262416,3.26225,2452.3,2452.0,0.0101752]
[1727825262615,0.35596438,2452.1,2452.0,0.0101752]
[1727825262816,7.25802974,2452.4,2452.0,0.0101752]
[1727825263015,0.35596438,2452.1,2452.0,0.0101752]
[1727825263212,3.26243,2452.2,2452.0,0.0101752]
[1727825263550,3.61846438,2452.1,2452.0,0.0101752]
[1727825263852,4.30655382,2452.1,2452.0,0.0101752]
[1727825264338,4.34575382,2452.1,2452.0,0.0101752]
[1727825264720,4.89575382,2452.1,2452.0,0.0101752]
[1727825264918,4.89575382,2452.1,2451.1,0.01]
[1727825264919,6.2637,2451.2,2451.1,0.01]
[1727825265143,10.72712641,2451.2,2451.1,0.01]
[1727825265308,11.27712641,2451.2,2451.1,0.01]
[1727825265504,20.58173821,2451.2,2451.1,0.01]
[1727825265730,22.56178849,2451.2,2451.1,0.01]
[1727825266130,6.26437,2450.7,2449.9,0.005]
[1727825266433,6.8153,2450.0,2449.9,0.005]
[1727825266624,35.45919341,2450.0,2449.9,0.005]
[1727825266811,35.81430405,2450.0,2449.9,0.005]
[1727825267103,35.15758905,2450.0,2449.9,0.005]
[1727825267313,35.15758905,2450.0,2448.3,12.21]
[1727825267314,3.81743,2448.4,2448.3,12.21]
[1727825267543,3.26743,2448.4,2448.0,18.42]
[1727825267855,0.35442243,2448.4,2448.0,19.09703876]
[1727825268158,3.2671,2448.7,2448.0,18.37]
[1727825268328,0.35283617,2448.3,2448.0,18.37]
[1727825268643,3.26717,2448.6,2448.1,1.837]
[1727825268814,0.35283617,2448.2,2448.0,18.37]
[1727825269014,3.26748,2448.4,2448.0,18.37]
[1727825269214,0.35283617,2448.1,2448.0,18.37]
[1727825269432,3.69354489,2448.8,2448.0,20.207]
[1727825269633,3.26731,2448.5,2448.0,20.207]
[1727825270365,0.35283617,2448.4,2448.0,20.207]
[1727825270682,3.62028617,2448.4,2448.0,20.207]
[1727825270973,3.26757,2448.3,2448.0,20.207]
[1727825271323,3.26757,2448.3,2448.0,1.837]
[1727825271554,3.26757,2448.3,2447.6,0.799]
[1727825271555,0.35283617,2448.2,2447.7,4.62307668]
[1727825271733,3.26709,2448.7,2447.9,3.26806]
[1727825272151,0.35283617,2448.6,2447.7,7.89134668]
[1727825272469,0.35283617,2448.6,2447.6,0.799]
[1727825272470,3.2677,2448.2,2447.6,0.799]
[1727825272668,3.26785,2448.1,2447.7,4.62307668]
[1727825273161,3.26736,2448.5,2447.7,4.62307668]
[1727825273408,0.36199262,2448.6,2447.6,0.799]
[1727825273409,6.53658,2447.8,2447.6,0.799]
[1727825273579,3.26837,2447.7,2447.6,0.799]
[1727825273755,3.26869,2447.5,2447.3,10.83]
[1727825273950,3.26877,2447.4,2447.3,10.83]
[1727825274175,4.17160617,2447.4,2447.3,10.83]
[1727825274400,4.36955579,2447.4,2447.3,10.83]
[1727825274691,4.91955579,2447.4,2447.3,10.83]
[1727825274850,4.36955579,2447.4,2447.3,10.83]
[1727825275056,3.62160617,2447.4,2447.3,10.83]
[1727825275389,0.35283617,2447.4,2447.3,10.83]
[1727825275760,3.62160617,2447.4,2447.3,10.83]
[1727825277637,0.35283617,2447.4,2447.3,10.83]
[1727825277785,0.35283617,2447.4,2447.3,12.78211267]
[1727825278118,0.35155223,2447.4,2447.3,12.78211267]
[1727825278320,0.36293526,2448.4,2447.5,3.26853]
[1727825278523,0.36293526,2448.4,2447.9,0.7682]
[1727825278524,3.26752,2448.4,2447.9,0.7682]
[1727825278693,3.26773,2448.2,2447.9,0.7682]
[1727825279029,3.26752,2448.4,2447.8,4.62307668]
[1727825279178,0.35155223,2448.1,2447.8,4.62307668]
[1727825279698,0.35155223,2448.0,2447.8,4.62307668]
[1727825279876,3.26752,2448.4,2447.8,4.62307668]
[1727825280076,0.35155223,2448.3,2447.8,4.62307668]
[1727825280491,3.26698,2448.8,2447.8,4.62307668]
[1727825280728,6.53399,2448.8,2447.8,7.89120668]
[1727825280895,3.61786662,2448.7,2447.8,4.62307668]
[1727825281123,3.61786662,2448.7,2447.8,7.89129668]
[1727825281426,3.61786662,2448.7,2447.7,3.26826]
[1727825281427,0.35079662,2448.7,2448.1,4.62307668]
[1727825281595,3.26796,2448.1,2447.6,0.7682]
[1727825281801,3.26818,2447.9,2447.3,11.5982]
[1727825281989,3.97094401,2448.6,2447.3,11.5982]
[1727825281990,3.26825,2447.8,2447.3,11.5982]
[1727825282183,0.35081885,2448.0,2447.3,11.5982]
[1727825282184,3.268,2448.0,2447.3,11.5982]
[1727825282427,0.35081885,2447.7,2447.3,11.5982]
[1727825282580,3.268,2448.0,2447.3,11.5982]
[1727825283028,0.35081885,2447.9,2447.3,11.5982]
[1727825283239,3.61892885,2447.9,2447.3,11.5982]
[1727825283380,0.68869289,2447.8,2447.3,10.83]
[1727825283583,3.26858,2447.6,2447.0,10.83]
[1727825283817,3.26858,2447.6,2447.1,10.83]
[1727825284115,3.61952885,2447.5,2447.1,10.83]
[1727825284329,0.35081885,2447.5,2447.1,10.83]
[1727825284533,3.61949885,2447.5,2447.1,10.83]
[1727825284700,3.98143874,2447.5,2447.1,10.83]
[1727825285234,3.98140874,2447.5,2447.1,10.83]
[1727825285929,0.71275874,2447.5,2447.1,10.83]
[1727825286087,0.35081885,2447.5,2447.1,10.83]
[1727825286982,3.26852,2447.6,2447.1,10.83]
[1727825287227,0.35081885,2447.4,2447.1,10.83]
[1727825287533,6.53667,2447.8,2447.0,3.26929]
[1727825287839,10.38,2447.9,2447.2,3.26904]
[1727825287840,0.35081885,2447.3,2447.2,3.26904]
[1727825288154,7.38,2447.9,2447.6,3.26837]
[1727825288302,6.57425,2448.4,2447.7,3.26835]
[1727825288303,10.68672,2448.4,2447.7,3.26835]
[1727825288489,0.657425,2448.3,2447.7,3.26835]
[1727825288686,0.657425,2448.3,2447.8,3.26815]
[1727825289026,3.26725,2448.6,2447.8,3.26815]
[1727825289187,15.41699,2448.8,2448.2,3.26766]
[1727825289188,3.26699,2448.8,2448.2,3.26766]
[1727825289389,3.30592,2449.0,2448.3,3.26756]
[1727825289611,3.26714,2448.7,2448.1,0.7682]
[1727825289836,3.26708,2448.7,2448.1,4.03597]
[1727825290040,0.653408,2448.6,2447.5,4.03673]
[1727825290328,0.653408,2448.6,2447.7,3.26835]
[1727825290329,3.26726,2448.6,2447.7,3.26835]
[1727825290527,3.26726,2448.6,2447.9,3.26809]
[1727825290528,3.26733,2448.5,2447.9,3.26809]
[1727825290897,6.53505,2448.4,2447.7,3.26829]
[1727825291220,3.26752,2448.4,2447.8,3.26821]
[1727825291422,3.920997,2448.4,2447.8,3.26821]
[1727825291815,0.35074111,2448.3,2447.9,3.26802]
[1727825292129,0.35074111,2448.3,2447.9,3.26798]
[1727825292422,0.35074111,2448.3,2447.8,6.53631]
[1727825293333,0.35074111,2448.3,2447.9,3.26808]
[1727825293624,0.35074111,2448.3,2448.0,3.26794]
[1727825293927,0.35074111,2448.3,2448.0,6.53588]
[1727825294226,0.35074111,2448.3,2448.0,3.2679]
[1727825294427,0.35074111,2448.3,2448.0,6.5358]
[1727825294629,0.35074111,2448.3,2448.0,3.2679]
[1727825294928,0.35074111,2448.3,2448.0,3.26789]
[1727825295087,0.35074111,2448.3,2448.0,6.53579]
[1727825295288,0.35074111,2448.3,2448.1,3.26781]
[1727825295531,7.38,2448.7,2448.1,3.26781]
[1727825295532,7.38,2448.7,2448.2,3.2677]
[1727825295700,8.444695,2448.7,2448.2,3.2677]
[1727825295914,0.35074111,2448.6,2448.4,3.26743]
[1727825296112,0.35074111,2448.6,2448.1,0.7999]
[1727825296421,7.80681083,2449.1,2448.5,3.2673]
[1727825296744,3.26663,2449.0,2448.5,3.2673]
[1727825297040,3.26697,2448.8,2448.2,3.26762]
[1727825297337,0.0392,2449.3,2448.1,0.7999]
[1727825297338,3.26733,2448.5,2448.1,0.7999]
[1727825297559,3.26764,2448.3,2447.8,4.06803]
[1727825297862,3.26752,2448.4,2447.8,7.33617]
[1727825298001,3.26752,2448.4,2447.9,3.26809]
[1727825298434,3.920998,2448.4,2447.9,3.26809]
[1727825301364,3.920988,2448.4,2447.9,3.26809]
[1727825301548,3.26726,2448.6,2448.0,3.26794]
[1727825301751,3.26726,2448.6,2448.1,3.26782]
[1727825302059,0.3513303,2448.5,2448.1,3.26782]
[1727825302622,0.3513303,2448.5,2448.1,6.53558]
[1727825303012,0.3513303,2448.5,2448.1,3.26776]
[1727825303324,0.3513303,2448.5,2448.4,4.06733]
[1727825303518,0.0392,2449.3,2448.4,4.06733]
[1727825303519,3.26693,2448.8,2448.4,0.7999]
[1727825303870,3.30549,2449.3,2448.7,3.26701]
[1727825303871,3.26644,2449.2,2448.7,3.26701]
[1727825304215,3.30552,2449.3,2448.7,3.26693]
[1727825304442,0.330552,2449.2,2448.8,3.26689]
[1727825304958,0.330552,2449.2,2448.6,3.26716]
[1727825304959,3.26658,2449.1,2448.6,3.26716]
[1727825305110,3.26684,2448.9,2448.4,4.0673]
[1727825305312,3.26704,2448.7,2448.4,0.7999]
[1727825305707,3.26684,2448.9,2448.4,4.06731]
[1727825305933,0.330604,2448.8,2448.4,4.06731]
[1727825306135,3.597514,2448.8,2448.4,0.7999]
[1727825307048,0.35206961,2448.7,2448.4,0.7999]
[1727825307247,3.597514,2448.8,2448.4,0.7999]
[1727825307473,0.35206961,2448.6,2448.4,0.7999]
[1727825307613,0.330604,2448.8,2448.4,0.7999]
[1727825307955,0.35195295,2448.5,2448.4,0.7999]
[1727825308157,6.597594,2448.8,2448.4,0.7999]
[1727825308310,0.35195295,2448.5,2448.4,4.06733]
[1727825308636,3.30585,2449.0,2448.5,3.26728]
[1727825308846,3.0,2449.1,2448.6,3.26708]
[1727825309151,3.26677,2448.9,2448.4,4.06721]
[1727825309313,3.593597,2448.8,2448.4,4.06721]
[1727825309815,0.326677,2448.8,2448.4,4.06721]
[1727825311842,0.326677,2448.8,2448.4,0.7999]
[1727825312157,3.593577,2448.8,2448.4,0.7999]
[1727825312956,0.326677,2448.8,2448.4,0.7999]
[1727825313641,0.326677,2448.8,2448.4,4.06733]
[1727825315073,0.326677,2448.8,2448.4,0.7999]
[1727825315216,0.326677,2448.8,2448.5,3.26729]
[1727825315415,0.326677,2448.8,2448.5,6.53458]
[1727825315616,9.53321,2449.1,2448.5,6.53458]
[1727825316113,9.53318,2449.1,2448.6,3.2671]
[1727825316315,3.2667,2449.0,2448.6,3.2671]
[1727825317343,0.330552,2449.2,2448.4,11.68725]
[1727825317620,3.26667,2449.0,2448.4,14.95461]
[1727825317818,3.920111,2448.9,2448.4,11.68725]
[1727825318752,3.920111,2448.9,2448.4,11.68724]
[1727825319196,3.26706,2448.7,2448.4,7.62]
[1727825319359,0.653321,2448.9,2448.4,7.62]
[1727825319360,0.653321,2448.9,2448.4,10.88731]
[1727825319698,3.26651,2449.1,2448.4,10.88731]
[1727825319699,3.26651,2449.1,2448.7,3.26701]
[1727825320400,3.26651,2449.1,2448.6,0.8082]
[1727825320401,3.2667,2449.0,2448.6,0.8082]
[1727825321792,0.35218077,2448.9,2448.6,0.8082]
[1727825322992,0.35218077,2448.9,2448.6,8.4282]
[1727825323990,3.61896077,2448.9,2448.6,8.4282]
[1727825324978,4.39218182,2448.9,2448.6,8.4282]
[1727825325303,4.39217182,2448.9,2448.6,8.4282]